bitfinex-derivatives/quotes_BTCF0:USTF0_20251103
["timestamp","ask_amount","ask_price","bid_price","bid_amount"]
[1762143676359,0.01942,107560.0,107550.0,0.27225706]
[1762143676562,0.006,107560.0,107550.0,0.27225706]
[1762143676762,0.0989803,107560.0,107550.0,0.17926816]
[1762143677060,0.0989803,107560.0,107550.0,0.27225706]
[1762143677258,0.006,107560.0,107550.0,0.27225706]
[1762143677656,0.1178703,107560.0,107550.0,0.17926816]
[1762143677858,0.1178703,107560.0,107550.0,0.27225706]
[1762143677859,0.0939803,107560.0,107550.0,0.27225706]
[1762143678060,0.0949803,107560.0,107550.0,0.27225706]
[1762143678265,0.002,107560.0,107550.0,0.27225706]
[1762143678465,0.0929803,107560.0,107550.0,0.17926816]
[1762143678660,0.0949803,107560.0,107550.0,0.17926816]
[1762143678857,0.0949803,107560.0,107550.0,0.27225706]
[1762143680064,0.0949803,107560.0,107550.0,0.27225696]
[1762143680065,0.002,107560.0,107550.0,0.27225696]
[1762143680856,0.002,107560.0,107550.0,0.29225696]
[1762143681059,0.106479,107580.0,107570.0,0.04624]
[1762143681266,0.129369,107580.0,107570.0,0.17989816]
[1762143681569,0.129369,107580.0,107570.0,0.27286966]
[1762143682152,0.004,107580.0,107570.0,0.27286966]
[1762143682357,0.0969629,107580.0,107570.0,0.27286966]
[1762143682666,0.0989629,107580.0,107570.0,0.27286966]
[1762143683161,0.006,107580.0,107570.0,0.28208153]
[1762143683666,0.0989629,107580.0,107570.0,0.17989816]
[1762143683864,0.006,107580.0,107570.0,0.27286976]
[1762143684160,0.0944904,107590.0,107580.0,0.1314029]
[1762143684161,0.00153,107590.0,107580.0,0.1314029]
[1762143684366,0.1063525,107620.0,107610.0,0.03444]
[1762143684367,0.05743,107620.0,107610.0,0.03444]
[1762143684562,0.1503583,107620.0,107610.0,0.16809816]
[1762143684755,0.1158147,107630.0,107620.0,0.03444]
[1762143684956,0.04401,107630.0,107620.0,0.26102646]
[1762143685168,0.04401,107630.0,107620.0,0.58590646]
[1762143685367,0.04401,107630.0,107620.0,0.49297816]
[1762143685660,0.05166623,107650.0,107640.0,0.03444]
[1762143685864,0.1352225,107650.0,107640.0,0.03444]
[1762143686067,0.1352225,107650.0,107640.0,0.16809816]
[1762143686262,0.1352225,107650.0,107640.0,0.03444]
[1762143686863,0.1488753,107640.0,107630.0,0.03444]
[1762143687072,0.1488753,107640.0,107620.0,0.03444]
[1762143687073,0.1352397,107630.0,107620.0,0.03444]
[1762143687559,0.0929342,107610.0,107600.0,8.323e-05]
[1762143687759,0.0929342,107610.0,107600.0,0.31768323]
[1762143688161,0.1352542,107610.0,107600.0,0.03452323]
[1762143688564,0.1362542,107610.0,107600.0,8.323e-05]
[1762143688763,0.1362542,107610.0,107600.0,0.03452323]
[1762143690073,0.1362542,107610.0,107600.0,8.323e-05]
[1762143690373,0.1382542,107610.0,107600.0,0.03452323]
[1762143691072,0.1382542,107610.0,107600.0,8.323e-05]
[1762143691661,0.1382542,107610.0,107600.0,0.03452323]
[1762143692172,0.1382552,107610.0,107600.0,0.03452323]
[1762143692476,0.1382552,107610.0,107600.0,0.16818139]
[1762143692774,0.1382552,107610.0,107600.0,0.26112519]
[1762143692975,0.117085,107610.0,107600.0,0.16818139]
[1762143693175,0.02415,107610.0,107600.0,0.26112499]
[1762143693376,0.003,107610.0,107600.0,0.26112499]
[1762143693574,0.003,107610.0,107600.0,0.58588499]
[1762143693975,0.0959349,107610.0,107600.0,0.49294139]
[1762143694171,0.1170849,107610.0,107600.0,0.49294139]
[1762143694379,0.1170849,107610.0,107600.0,0.58588499]
[1762143694380,0.02415,107610.0,107600.0,0.58588499]
[1762143694675,0.003,107610.0,107600.0,0.58588499]
[1762143695067,0.003,107610.0,107600.0,0.60588499]
[1762143695667,0.003,107610.0,107600.0,0.58588499]
[1762143696165,0.003,107610.0,107600.0,0.60588499]
[1762143697078,0.003,107610.0,107600.0,0.58588499]
[1762143697467,0.095935,107610.0,107600.0,0.58588499]
[1762143697668,0.117085,107610.0,107600.0,0.49294139]
[1762143697869,0.138255,107610.0,107600.0,0.16818139]
[1762143698067,0.138255,107610.0,107600.0,0.35924323]
[1762143698277,0.138255,107610.0,107600.0,0.35920323]
[1762143698476,0.138255,107610.0,107600.0,0.03452323]
[1762143698870,0.136255,107610.0,107600.0,0.00108323]
[1762143699470,0.136255,107610.0,107600.0,0.01830323]
[1762143699779,0.137255,107610.0,107600.0,0.01730323]
[1762143700672,0.138255,107610.0,107600.0,8.323e-05]
[1762143702069,0.138255,107610.0,107600.0,0.03452323]
[1762143702270,0.138255,107610.0,107600.0,0.16818139]
[1762143702674,0.138255,107610.0,107600.0,0.03452323]
[1762143703575,0.138255,107610.0,107600.0,0.12746733]
[1762143703775,0.003,107610.0,107600.0,0.26112549]
[1762143704581,0.003,107610.0,107600.0,0.58576549]
[1762143704882,0.001,107610.0,107600.0,0.58676549]
[1762143705585,0.001,107610.0,107600.0,0.60676549]
[1762143705778,0.01364,107620.0,107610.0,0.1273754]
[1762143705972,0.01364,107640.0,107610.0,0.26103356]
[1762143706183,0.05907,107640.0,107630.0,0.01722]
[1762143706480,0.05907,107640.0,107630.0,0.03444]
[1762143706982,0.05946,107620.0,107610.0,0.26103346]
[1762143707175,0.001,107620.0,107610.0,0.26103346]
[1762143707575,0.06307,107640.0,107630.0,0.01722]
[1762143707977,0.04543,107630.0,107620.0,0.03444]
[1762143709379,0.05043,107630.0,107620.0,0.1273688]
[1762143710074,0.05243,107630.0,107620.0,0.1273688]
[1762143710479,0.05243,107630.0,107620.0,0.03444]
[1762143711885,0.05243,107630.0,107620.0,0.1273687]
[1762143714486,0.007,107630.0,107620.0,0.1273687]
[1762143714880,0.05243,107630.0,107620.0,0.1273687]
[1762143715782,0.05243,107630.0,107620.0,0.03444]
[1762143715991,0.05243,107630.0,107620.0,0.1273686]
[1762143717387,0.05243,107630.0,107620.0,0.03444]
[1762143718686,0.05243,107630.0,107620.0,0.1273671]
[1762143718887,0.007,107630.0,107620.0,0.1273671]
[1762143719186,0.007,107630.0,107620.0,0.4518871]
[1762143719589,0.03819656,107660.0,107630.0,0.0929145]
[1762143719786,0.03573,107640.0,107630.0,0.3288893]
[1762143719989,0.05846,107640.0,107630.0,0.3288893]
[1762143720892,0.06546,107640.0,107630.0,0.03444]
[1762143721187,0.06546,107640.0,107630.0,0.1273587]
[1762143721585,0.007,107640.0,107630.0,0.1273587]
[1762143721790,0.01,107640.0,107630.0,0.1273587]
[1762143722385,0.06846,107640.0,107630.0,0.03444]
[1762143722785,0.02303,107640.0,107620.0,0.03444]
[1762143722984,0.04543,107630.0,107620.0,0.03444]
[1762143723186,0.05846,107620.0,107610.0,0.03444]
[1762143723480,0.04543,107610.0,107600.0,0.1013083]
[1762143723792,0.04543,107610.0,107600.0,8.323e-05]
[1762143724891,0.04543,107610.0,107600.0,0.00108323]
[1762143725195,0.64543,107610.0,107600.0,0.00108323]
[1762143725390,0.64643,107610.0,107600.0,3.23e-06]
[1762143725585,0.04543,107590.0,107580.0,0.06678507]
[1762143725781,0.04543,107590.0,107570.0,0.06678507]
[1762143725782,0.0227,107580.0,107570.0,0.06678507]
[1762143725994,0.05846,107580.0,107570.0,0.10740507]
[1762143726383,0.01303,107600.0,107590.0,0.02031]
[1762143726591,0.05846,107600.0,107590.0,0.1335733]
[1762143726785,0.05853331,107600.0,107590.0,0.04062]
[1762143727398,0.05853331,107600.0,107590.0,0.1335733]
[1762143727597,0.05853331,107600.0,107590.0,0.04062]
[1762143728597,0.05853331,107600.0,107590.0,0.1335733]
[1762143728789,7.331e-05,107600.0,107590.0,0.1335733]
[1762143729100,0.03573,107620.0,107610.0,0.1335563]
[1762143729301,0.05846,107620.0,107610.0,0.3350911]
[1762143729485,0.05846,107620.0,107610.0,0.2421548]
[1762143729694,0.05846,107620.0,107610.0,0.04062]
[1762143729891,0.05846,107620.0,107610.0,0.02031]
[1762143730198,0.05846,107620.0,107610.0,0.1335563]
[1762143730396,0.05846,107620.0,107610.0,0.04062]
[1762143730587,0.0227,107610.0,107600.0,0.34479]
[1762143730793,0.04543,107610.0,107600.0,0.3651]
[1762143730985,0.04543,107610.0,107600.0,0.458045]
[1762143731192,0.002,107620.0,107610.0,0.1335564]
[1762143731394,0.0004386,107620.0,107610.0,0.3350912]
[1762143731595,0.05846,107640.0,107630.0,0.1335391]
[1762143731799,0.05846,107640.0,107630.0,0.3350739]
[1762143731992,0.04543,107650.0,107640.0,0.1335283]
[1762143732299,0.06889896,107650.0,107640.0,0.14306924]
[1762143732600,0.04616896,107650.0,107640.0,0.46754924]
[1762143732992,0.0227,107650.0,107640.0,0.46754924]
[1762143733194,0.05846,107660.0,107650.0,0.04062]
[1762143733394,0.08158955,107660.0,107650.0,0.3350566]
[1762143733594,0.08158955,107660.0,107650.0,0.2421548]
[1762143733802,0.08158955,107660.0,107650.0,0.3350564]
[1762143734714,0.02612955,107660.0,107650.0,0.3350564]
[1762143735713,0.08320498,107660.0,107650.0,0.2421548]
[1762143736209,0.08920498,107660.0,107650.0,0.2421548]
[1762143736511,0.08920498,107660.0,107650.0,0.3350569]
[1762143737014,0.06616,107660.0,107650.0,0.3350569]
[1762143737708,0.04476,107660.0,107650.0,0.3350569]
[1762143737913,0.009,107660.0,107650.0,0.3350569]
[1762143738406,0.009,107660.0,107650.0,0.3550569]
[1762143738609,0.009,107660.0,107650.0,0.5872969]
[1762143739010,0.009,107660.0,107650.0,0.5672969]
[1762143739213,0.009,107660.0,107650.0,0.3350569]
[1762143739405,0.009,107660.0,107650.0,0.3550569]
[1762143739809,0.009,107660.0,107650.0,0.3350569]
[1762143740400,0.009,107660.0,107650.0,0.1335221]
[1762143740606,0.009,107660.0,107650.0,0.3350565]
[1762143741006,0.009,107660.0,107650.0,0.6594165]
[1762143741407,0.009,107660.0,107650.0,0.6794165]
[1762143741612,0.009,107660.0,107650.0,0.9116565]
[1762143741815,0.03403,107680.0,107670.0,0.1275045]
[1762143742004,0.05705761,107680.0,107670.0,0.6533993]
[1762143742205,0.03403,107680.0,107670.0,0.72018437]
[1762143742400,0.01303,107700.0,107670.0,0.6533993]
[1762143742609,0.05543,107700.0,107690.0,0.02262]
[1762143743606,0.05543,107700.0,107690.0,0.01131]
[1762143743806,0.05543,107700.0,107670.0,0.68555957]
[1762143744002,0.01306,107680.0,107670.0,0.61529987]
[1762143744207,0.05546,107680.0,107670.0,0.70818467]
[1762143744513,0.05546,107680.0,107670.0,0.71018467]
[1762143745215,0.05546,107680.0,107670.0,0.6433996]
[1762143746520,0.05845,107700.0,107690.0,0.1154876]
[1762143746721,0.05845,107700.0,107690.0,0.5484348]
[1762143747218,0.05932,107720.0,107710.0,0.02262]
[1762143747416,0.05932,107720.0,107710.0,0.5484348]
[1762143747617,0.05932,107720.0,107710.0,0.3469]
[1762143748620,0.06832,107720.0,107710.0,0.3469]
[1762143748821,0.04542,107710.0,107700.0,0.2241548]
[1762143749020,0.04542,107710.0,107700.0,0.6412534]
[1762143749517,0.06832,107720.0,107710.0,0.11547]
[1762143749713,0.009,107720.0,107710.0,0.11547]
[1762143750618,0.009,107720.0,107710.0,0.13547]
[1762143750816,0.05848,107740.0,107730.0,0.02262]
[1762143751016,0.05848,107740.0,107730.0,0.5483548]
[1762143751219,0.05848,107740.0,107730.0,0.6411875]
[1762143751615,0.05848,107740.0,107730.0,0.5483548]
[1762143752324,0.03592,107740.0,107730.0,0.6411874]
[1762143752518,0.01306,107740.0,107730.0,0.6411874]
[1762143752715,0.04542,107750.0,107740.0,0.1154438]
[1762143753709,0.04542,107750.0,107740.0,0.1354438]
[1762143754021,0.05932,107760.0,107750.0,0.1154354]
[1762143754223,0.05932,107760.0,107750.0,0.6411302]
[1762143754418,0.05932,107760.0,107750.0,0.65050561]
[1762143755914,0.002,107760.0,107750.0,0.65050561]
[1762143756214,0.0159,107760.0,107750.0,0.55769021]
[1762143756823,0.0159,107760.0,107750.0,0.65050571]
[1762143757015,0.06132,107760.0,107750.0,0.55769021]
[1762143757320,0.06132,107760.0,107750.0,0.5483148]
[1762143757522,0.06132,107760.0,107750.0,0.2241548]
[1762143757715,0.06132,107760.0,107750.0,0.5482348]
[1762143757917,0.06132,107760.0,107750.0,0.2241548]
[1762143758125,0.06132,107760.0,107750.0,0.5482348]
[1762143758921,0.06132,107760.0,107750.0,0.2241548]
[1762143759114,0.06132,107760.0,107730.0,0.2015348]
[1762143759320,0.05932,107740.0,107730.0,0.2241548]
[1762143759520,0.05932,107740.0,107730.0,0.5481948]
[1762143760317,0.05932,107740.0,107730.0,0.6450278]
[1762143760518,0.05932,107740.0,107730.0,0.6470278]
[1762143760825,0.05932,107740.0,107730.0,0.5541948]
[1762143762023,0.05932,107760.0,107750.0,0.02262]
[1762143762228,0.05932,107760.0,107750.0,0.2241548]
[1762143762821,0.05932,107760.0,107750.0,0.3169708]
[1762143763825,0.05932,107760.0,107750.0,0.02262]
[1762143764137,0.06132,107760.0,107750.0,0.2241548]
[1762143764321,0.06132,107760.0,107750.0,0.3169703]
[1762143764819,0.06132,107760.0,107750.0,0.6409703]
[1762143765023,0.002,107760.0,107750.0,0.6409703]
[1762143765221,0.002,107760.0,107750.0,0.6609703]
[1762143765426,0.002,107760.0,107750.0,0.6409703]
[1762143766531,0.002,107760.0,107750.0,0.6609703]
[1762143766927,0.03518,107780.0,107770.0,0.01131]
[1762143767228,0.05716,107780.0,107770.0,0.5481148]
[1762143767425,0.03518,107780.0,107770.0,0.6409143]
[1762143767732,0.05716,107780.0,107770.0,0.6409143]
[1762143767932,0.05716,107780.0,107770.0,0.5481148]
[1762143768328,0.06316,107780.0,107770.0,0.5481148]
[1762143768528,0.06316,107780.0,107770.0,0.6409141]
[1762143769318,0.04118,107780.0,107770.0,0.6409141]
[1762143769533,0.006,107780.0,107770.0,0.6409141]
[1762143771834,0.06286,107780.0,107770.0,0.6409151]
[1762143772029,0.06286,107780.0,107770.0,0.5481148]
[1762143772236,0.06286,107780.0,107770.0,0.6409151]
[1762143772535,0.06286,107780.0,107770.0,0.57258181]
[1762143772737,0.06286,107780.0,107770.0,0.47978151]
[1762143773129,0.06286,107780.0,107770.0,0.57258201]
[1762143773538,0.06286,107780.0,107770.0,0.47978151]
[1762143774237,0.06286,107780.0,107770.0,0.57258181]
[1762143774628,0.06286,107780.0,107770.0,0.47978151]
[1762143774830,0.06286,107780.0,107770.0,0.57258201]
[1762143775128,0.06286,107780.0,107770.0,0.4393805]
[1762143775327,0.06286,107780.0,107770.0,0.57258201]
[1762143777826,0.0196,107780.0,107770.0,0.57258201]
[1762143778438,0.006,107780.0,107770.0,0.57258201]
[1762143779027,0.006,107780.0,107770.0,0.59258201]
[1762143779438,1.0139,107800.0,107790.0,0.02262]
[1762143779640,1.0139,107800.0,107790.0,0.15582151]
[1762143780429,1.0139,107800.0,107790.0,0.24860141]
[1762143780629,1.0139,107800.0,107790.0,0.57240141]
[1762143781236,1.0,107800.0,107790.0,0.24860141]
[1762143781445,1.0,107800.0,107790.0,0.47962151]
[1762143781446,1.0136,107800.0,107790.0,0.47962151]
[1762143781630,1.0136,107800.0,107790.0,0.24860191]
[1762143781834,1.0186,107800.0,107790.0,0.34642]
[1762143782039,1.0186,107800.0,107790.0,0.47962151]
[1762143782937,1.0186,107800.0,107790.0,0.57240191]
[1762143783737,1.0186,107800.0,107790.0,0.48052191]
[1762143784046,1.005,107800.0,107790.0,0.70560342]
[1762143784336,0.33121312,107800.0,107790.0,0.70560342]
[1762143784542,0.33121312,107800.0,107790.0,0.75560342]
[1762143784744,0.33121312,107800.0,107790.0,0.98752342]
[1762143785238,0.34481312,107800.0,107790.0,0.85432191]
[1762143785435,0.36209312,107800.0,107790.0,0.57236191]
[1762143785943,0.36209312,107800.0,107790.0,0.15582151]
[1762143786138,0.38307312,107800.0,107790.0,0.57236151]
[1762143786341,0.38307312,107800.0,107790.0,0.15682151]
[1762143786638,0.38307312,107800.0,107790.0,0.48058151]
[1762143787243,0.38307312,107800.0,107790.0,0.15682151]
[1762143787431,0.38307312,107800.0,107790.0,0.57432151]
[1762143787639,0.38307312,107800.0,107790.0,0.25060151]
[1762143787948,0.33981312,107800.0,107790.0,0.25060151]
[1762143788142,0.33981312,107800.0,107790.0,0.95944302]
[1762143788744,0.32621312,107800.0,107790.0,0.95944302]
[1762143788940,0.0136,107820.0,107810.0,0.0927632]
[1762143789246,0.0136,107800.0,107790.0,0.18754508]
[1762143789445,0.0136,107800.0,107790.0,0.4184964]
[1762143790446,0.05686,107820.0,107800.0,0.0927677]
[1762143790647,0.05686,107820.0,107810.0,0.45692151]
[1762143790851,0.06086,107820.0,107810.0,0.54968421]
[1762143791442,0.0176,107820.0,107810.0,0.56968421]
[1762143791638,0.0146,107820.0,107810.0,0.54968421]
[1762143791950,0.0146,107820.0,107810.0,0.55916444]
[1762143792338,0.0136,107820.0,107810.0,0.57916444]
[1762143792545,0.0176,107820.0,107810.0,0.55916444]
[1762143793141,0.06086,107820.0,107810.0,0.55916444]
[1762143794251,0.06086,107820.0,107810.0,0.57916444]
[1762143794442,0.06086,107820.0,107810.0,0.55916444]
[1762143794647,0.03888,107820.0,107810.0,0.57916444]
[1762143794851,0.03888,107820.0,107810.0,0.55916444]
[1762143795056,0.06086,107820.0,107810.0,0.55916444]
[1762143795849,0.0176,107820.0,107810.0,0.55916444]
[1762143796437,0.004,107820.0,107810.0,0.79104444]
[1762143796642,0.004,107820.0,107810.0,0.70191591]
[1762143796952,0.01796,107820.0,107810.0,0.57916444]
[1762143797142,0.01796,107820.0,107810.0,0.55916444]
[1762143797345,0.03982,107820.0,107810.0,0.62594951]
[1762143798150,0.01796,107820.0,107810.0,0.57916444]
[1762143798344,0.05721,107840.0,107830.0,0.092746]
[1762143798545,0.05721,107840.0,107830.0,0.54958751]
[1762143799649,0.0136,107860.0,107850.0,0.0927289]
[1762143799857,0.05721,107860.0,107850.0,0.45684151]
[1762143800059,0.05721,107860.0,107850.0,0.68277192]
[1762143800257,0.05721,107860.0,107850.0,0.54957041]
[1762143800653,0.05721,107860.0,107850.0,0.45684151]
[1762143800855,0.05721,107860.0,107850.0,0.54957031]
[1762143800856,0.05821,107860.0,107850.0,0.54957031]
[1762143801449,0.05821,107860.0,107850.0,0.14277199]
[1762143801750,0.05821,107860.0,107840.0,0.13320151]
[1762143801955,0.05821,107860.0,107850.0,0.3236]
[1762143802358,0.04361,107850.0,107840.0,0.13320151]
[1762143802563,0.04361,107850.0,107840.0,0.45680151]
[1762143803053,0.04361,107850.0,107840.0,0.13320151]
[1762143803246,0.04361,107850.0,107840.0,0.45680151]
[1762143803452,0.04361,107850.0,107840.0,0.13320151]
[1762143803654,0.04361,107850.0,107840.0,0.45680151]
[1762143804056,0.05757,107840.0,107830.0,0.16348839]
[1762143804262,0.05757,107840.0,107830.0,0.57983449]
[1762143805663,0.05757,107840.0,107830.0,0.48708839]
[1762143806161,0.05757,107840.0,107830.0,0.49108839]
[1762143807857,0.05757,107840.0,107830.0,0.58383479]
[1762143808664,0.01396,107840.0,107830.0,0.58383479]
[1762143809050,0.01396,107840.0,107830.0,0.60383479]
[1762143809252,0.01396,107840.0,107830.0,0.58383479]
[1762143809655,0.03679,107840.0,107830.0,0.58383479]
[1762143810057,0.0136,107860.0,107840.0,0.0927308]
[1762143810058,0.05919,107860.0,107840.0,0.0927308]
[1762143810367,0.05919,107860.0,107850.0,0.54949061]
[1762143811469,0.05919,107860.0,107850.0,0.68269212]
[1762143811664,0.05919,107860.0,107850.0,0.54949061]
[1762143812165,0.05919,107860.0,107850.0,0.45676151]
[1762143812568,0.05919,107860.0,107850.0,0.32356]
[1762143812768,0.05919,107860.0,107850.0,0.45676151]
[1762143813165,0.05919,107860.0,107850.0,0.54949061]
[1762143813469,0.06019,107860.0,107850.0,0.54949061]
[1762143817671,0.06019,107860.0,107850.0,0.68269212]
[1762143817869,0.0146,107860.0,107850.0,0.68269212]
[1762143818072,0.06019,107860.0,107850.0,0.68269212]
[1762143818374,0.0146,107860.0,107850.0,0.68269212]
[1762143819176,0.03743,107860.0,107850.0,0.68269212]
[1762143819669,0.06019,107860.0,107850.0,0.58996302]
[1762143819870,0.06019,107860.0,107850.0,0.45676151]
[1762143820079,0.06019,107860.0,107850.0,0.45668151]
[1762143821075,0.06019,107860.0,107850.0,0.54941041]
[1762143822075,0.06019,107860.0,107850.0,0.45668151]
[1762143822472,0.06019,107860.0,107850.0,0.54941071]
[1762143825975,0.06019,107860.0,107850.0,0.74939729]
[1762143826575,0.06019,107860.0,107850.0,0.61619578]
[1762143826969,0.06019,107860.0,107850.0,0.52346658]
[1762143828271,0.06019,107860.0,107850.0,0.61619558]
[1762143829074,0.06019,107860.0,107850.0,0.52346658]
[1762143829879,0.06019,107860.0,107850.0,0.19998658]
[1762143830177,0.06019,107860.0,107850.0,0.52342658]
[1762143830579,0.06019,107860.0,107850.0,0.19998658]
[1762143830780,0.05622,107850.0,107840.0,0.13320151]
[1762143830969,0.05622,107850.0,107840.0,0.5232995]
[1762143831170,0.05622,107850.0,107840.0,0.6160371]
[1762143832482,0.05622,107850.0,107840.0,0.48283559]
[1762143832781,0.05622,107850.0,107840.0,0.68349653]
[1762143836578,0.05622,107850.0,107840.0,0.59075893]
[1762143837480,0.05622,107850.0,107840.0,0.68349653]
[1762143837990,0.05622,107850.0,107840.0,0.61683854]
[1762143838382,0.0136,107860.0,107850.0,0.092729]
[1762143838786,0.0136,107860.0,107850.0,0.17598872]
[1762143839885,0.05715,107860.0,107850.0,0.17598872]
[1762143840686,0.05815,107860.0,107850.0,0.17598872]
[1762143841088,0.0146,107860.0,107850.0,0.17598872]
[1762143841390,0.001,107860.0,107850.0,0.19598872]
[1762143841783,0.05715,107880.0,107870.0,0.0927118]
[1762143841986,0.05715,107880.0,107870.0,0.39006745]
[1762143842284,0.05715,107880.0,107870.0,0.06666745]
[1762143842589,0.28891,107880.0,107870.0,0.06666745]
[1762143842893,0.05622,107870.0,107860.0,0.67398811]
[1762143843192,0.05622,107870.0,107860.0,0.59072839]
[1762143843786,0.05759179,107870.0,107860.0,0.59072839]
[1762143844189,0.05759179,107870.0,107860.0,0.26732839]
[1762143844388,0.88935179,107870.0,107860.0,0.26732839]
[1762143844893,0.65759179,107870.0,107860.0,0.20066094]
[1762143845988,0.65759179,107870.0,107860.0,0.29338134]
[1762143847296,0.65759179,107870.0,107860.0,0.20066094]
[1762143848888,0.658774,107870.0,107860.0,0.20066094]
[1762143849392,0.658774,107870.0,107860.0,0.26732839]
[1762143849687,0.658774,107870.0,107860.0,0.20066094]
[1762143849992,0.658774,107870.0,107860.0,0.26732839]
[1762143850391,0.658774,107870.0,107860.0,0.36004879]
[1762143850598,0.658774,107870.0,107860.0,0.26732839]
[1762143851198,0.058774,107870.0,107860.0,0.29338134]
[1762143851389,0.058774,107870.0,107860.0,0.36004879]
[1762143851897,0.015224,107870.0,107860.0,0.69293909]
[1762143852098,0.058774,107870.0,107860.0,0.69293909]
[1762143852597,0.058774,107870.0,107860.0,0.70953136]
[1762143852998,0.015224,107870.0,107860.0,0.62627164]
[1762143853201,0.058774,107870.0,107860.0,0.40662306]
[1762143853400,0.058774,107870.0,107860.0,0.607284]
[1762143854598,0.058774,107870.0,107860.0,0.7000048]
[1762143855002,0.058774,107870.0,107860.0,0.607284]
[1762143855301,0.058774,107870.0,107860.0,0.7000048]
[1762143856099,0.037264,107870.0,107860.0,0.7000048]
[1762143856298,0.037264,107870.0,107860.0,0.70940959]
[1762143856299,0.015224,107870.0,107860.0,0.70940959]
[1762143857801,0.038294,107870.0,107860.0,0.61668879]
[1762143858102,0.059384,107870.0,107860.0,0.61668879]
[1762143858494,0.059384,107870.0,107860.0,0.70940939]
[1762143859202,0.06044906,107870.0,107860.0,0.70940939]
[1762143859703,0.03935906,107870.0,107860.0,0.70940939]
[1762143859902,0.01628906,107870.0,107860.0,0.70940939]
[1762143860102,0.06044906,107870.0,107860.0,0.70940939]
[1762143860300,0.06044906,107870.0,107860.0,0.69269777]
[1762143861492,0.00361906,107870.0,107860.0,0.69269777]
[1762143861895,0.22569815,107900.0,107870.0,0.0927053]
[1762143862098,0.05802,107890.0,107880.0,0.48257134]
[1762143862299,0.05802,107890.0,107880.0,0.59053238]
[1762143864107,0.05802,107890.0,107880.0,0.68323578]
[1762143864494,0.01492476,107890.0,107880.0,0.68323578]
[1762143864809,0.01492476,107890.0,107880.0,0.68623578]
[1762143865200,0.05592,107900.0,107890.0,0.1002351]
[1762143865505,0.05711,107910.0,107900.0,0.05457]
[1762143865706,0.05711,107910.0,107900.0,0.64501098]
[1762143865913,0.05711,107910.0,107900.0,0.63415098]
[1762143866408,0.65711,107910.0,107900.0,0.24437094]
[1762143866709,0.65711,107910.0,107900.0,0.22227094]
[1762143867907,0.65711,107910.0,107900.0,0.20066094]
[1762143868710,0.88879,107910.0,107900.0,0.20066094]
[1762143870501,0.65711,107910.0,107900.0,0.20066094]
[1762143871008,0.65711,107910.0,107900.0,0.24437094]
[1762143871404,0.98027,107910.0,107900.0,0.24437094]
[1762143873311,0.98027,107910.0,107900.0,0.22227094]
[1762143873608,0.056,107890.0,107880.0,0.31091098]
[1762143873807,0.056,107890.0,107880.0,0.22227094]
[1762143874108,0.056,107890.0,107880.0,0.20066094]
[1762143874705,0.05706467,107890.0,107880.0,0.20066094]
[1762143875309,0.05706467,107890.0,107880.0,0.20166094]
[1762143875609,0.05706467,107890.0,107880.0,0.20466094]
[1762143875810,0.05706467,107890.0,107880.0,0.20366094]
[1762143876014,1.21190467,107890.0,107880.0,0.003]
[1762143876206,0.98018467,107890.0,107880.0,0.003]
[1762143876405,1.21190467,107890.0,107860.0,0.59036098]
[1762143876607,0.056,107870.0,107860.0,0.31091098]
[1762143876802,0.05706467,107870.0,107860.0,0.31091098]
[1762143877608,0.05706467,107870.0,107860.0,0.04371]
[1762143877818,0.05706467,107870.0,107850.0,0.63411382]
[1762143877819,0.056,107860.0,107850.0,0.63411382]
[1762143878407,0.056,107860.0,107850.0,0.56759326]
[1762143878806,0.05706467,107860.0,107850.0,0.56759326]
[1762143879006,0.05706467,107860.0,107850.0,0.57359326]
[1762143879207,0.05706467,107860.0,107850.0,0.57559326]
[1762143879716,0.05706467,107860.0,107850.0,0.57359326]
[1762143880015,0.05706467,107860.0,107850.0,0.57059326]
[1762143881111,0.05706467,107860.0,107850.0,0.63711382]
[1762143881310,0.05706467,107860.0,107850.0,0.57059326]
[1762143881917,0.05706467,107860.0,107850.0,0.63711382]
[1762143882102,0.06649646,107860.0,107850.0,0.63711382]
[1762143884118,0.05706467,107860.0,107850.0,0.72984442]
[1762143885121,0.05706467,107860.0,107850.0,0.63711382]
[1762143885318,0.05706467,107860.0,107850.0,0.57059326]
[1762143885824,0.05706467,107860.0,107850.0,0.31399382]
[1762143886212,0.05706467,107860.0,107850.0,0.24747326]
[1762143888123,0.05706467,107860.0,107850.0,0.34020386]
[1762143888317,0.05806467,107860.0,107850.0,0.33720386]
[1762143888623,0.05906467,107860.0,107850.0,0.33720386]
[1762143888822,0.05806467,107860.0,107850.0,0.33720386]
[1762143889223,0.05706467,107860.0,107850.0,0.24647326]
[1762143891228,0.00106467,107860.0,107850.0,0.35006386]
[1762143891523,0.04558467,107860.0,107850.0,0.35006386]
[1762143893321,0.04558467,107860.0,107850.0,0.25733326]
[1762143893825,0.04558467,107860.0,107850.0,0.35006386]
[1762143894225,0.98168467,107860.0,107850.0,0.00210232]
[1762143894422,0.0575,107840.0,107830.0,0.07476688]
[1762143894924,0.05856467,107840.0,107830.0,0.07476688]
[1762143895421,0.05865535,107840.0,107830.0,0.07476688]
[1762143895625,0.05865535,107840.0,107830.0,0.08076688]
[1762143895816,0.05865535,107840.0,107830.0,0.03628688]
[1762143896018,0.38177535,107840.0,107830.0,0.03628688]
[1762143896213,0.38177535,107840.0,107830.0,0.05893688]
[1762143897223,0.38177535,107840.0,107830.0,0.08076688]
[1762143900326,0.38177535,107840.0,107830.0,0.22864307]
[1762143900628,0.38177535,107840.0,107830.0,0.05893688]
[1762143900933,0.38177535,107840.0,107830.0,0.08076688]
[1762143901729,0.38177535,107840.0,107830.0,0.03628688]
[1762143902034,1.21361535,107840.0,107830.0,0.03628688]
[1762143902224,0.04452,107810.0,107800.0,0.20502619]
[1762143902421,0.05760181,107810.0,107800.0,0.20502619]
[1762143902617,0.05760181,107810.0,107800.0,0.19235619]
[1762143902825,0.0575,107790.0,107780.0,0.04454531]
[1762143903122,0.0575,107800.0,107790.0,0.04448]
[1762143903319,0.0575,107800.0,107790.0,0.19235619]
[1762143903723,0.0475,107800.0,107790.0,0.19235619]
[1762143903922,0.04856467,107800.0,107790.0,0.04448]
[1762143904227,0.05654467,107800.0,107790.0,0.04448]
[1762143904429,0.06582849,107800.0,107790.0,0.05448]
[1762143904629,0.06582849,107800.0,107790.0,0.05948]